Cogmind - Beta 16 @@@ ROGUE MODE // 2025.12.24 @ 13:56:21 Player: OctarineSorcerer Result: Destroyed by G-34 Mercenary with Small Laser Performance ------------- Evolutions (1) 500 Regions Visited (2) 400 Robots Destroyed (1) 5 Value Destroyed (57) 57 Prototype IDs (0) 0 Alien Tech Used (0) 0 Bonus (0) 0 TOTAL SCORE: 962 Bonus ------- None Cogmind --------- Core Integrity 0/400 Matter 243/450 Energy 250/250 System Corruption 0% Temperature Cool (6) Movement Core (200) Ox3 Location -9/Materials Parts ------- > --- POWER (1) -------- (None) > --- PROPULSION (3) --- (None) > --- UTILITY (3) ------ Small Storage Unit Medium Battery Large Matter Pod > --- WEAPON (2) ------- (None) > --- INVENTORY (8) ---- Large Matter Pod (0) Peak State ------------ > --- POWER ------------ Ion Engine > --- PROPULSION ------- Aluminum Leg Aluminum Leg > --- UTILITY ---------- Small Storage Unit Medium Battery Improved Targeting Computer > --- WEAPON ----------- EM Pulse Gun > --- INVENTORY -------- Light Ion Engine Compact Wheel [Rating: 8] Favorites ----------- Power Ion Engine Engine Ion Engine Propulsion Aluminum Leg Leg Aluminum Leg Wheel Compact Wheel Utility Small Storage Unit Storage Small Storage Unit Processor Improved Targeting Computer Protection Light Armor Plating Weapon EM Pulse Gun Energy Gun EM Pulse Gun Build | -11 -10 -9 ------- Run | Yrd Mat Mat Slots Evolved 2 | . . 2 Power . | . . . Propulsion 1 | . . 1 Utility 1 | . . 1 Weapon . | . . . Parts Attached 13 | 5 2 6 Power 3 | 1 . 2 Engine 3 | 1 . 2 Core . | . . . Reactor . | . . . Propulsion 3 | 2 . 1 Treads . | . . . Leg 2 | 2 . . Wheel 1 | . . 1 Hover . | . . . Flight . | . . . Utility 5 | 1 1 3 Device . | . . . Storage 3 | 1 1 1 Processor 1 | . . 1 Hackware . | . . . Protection 1 | . . 1 Artifact . | . . . Weapon 2 | 1 1 . Energy Gun 2 | 1 1 . Energy Cannon . | . . . Ballistic Gun . | . . . Ballistic Cannon . | . . . Launcher . | . . . Special Weapon . | . . . Impact Weapon . | . . . Slashing Weapon . | . . . Piercing Weapon . | . . . Special Melee Weapon . | . . . Unidentified Prototypes . | . . . Parts Lost 9 | . 1 8 Power 3 | . . 3 Propulsion 3 | . . 3 Utility 1 | . . 1 Weapon 2 | . 1 1 Highest Loss Streak 4 | . 1 4 To Critical Strikes . | . . . Average Backups 1 | 1 2 1 Power . | . 1 . Propulsion . | . 1 . Utility . | . . . Weapon . | . . . Tool/Special . | . . . Unused Backups 1 | . . 1 Power . | . . . Propulsion . | . . . Utility 1 | . . 1 Weapon . | . . . Tool/Special . | . . . Average Slot Usage (%) 71 | . 91 57 Engine 11 | . 14 9 Leg 18 | . 28 12 Wheel 1 | . . 2 Storage 23 | . 25 22 Processor 3 | . . 6 Energy Gun 11 | . 22 4 Peak Build Rating 8 | 5 7 8 Average Rating 5 | 3 6 5 On Entrance 3 | . 5 6 Avg Prop Armor Cover (%) . | . . . Naked Turns . | . . . Heaviest Build 16 | 12 16 15 Greatest Support 20 | 20 20 20 Greatest Overweight (x) 4 | 2 . 4 Average Overweight (x) . | . . . Largest Inventory Capacity 8 | 8 8 8 Average Capacity 7 | 6 8 8 Most Carried 3 | 3 3 2 Average Carried 1 | 1 2 1 Final Capacity 8 | 8 8 8 Final Carried 3 | 3 2 1 Class Distribution -------------------- 100% | Mutant Dominant Class ---------------- Mutant | -10/Materials Mutant | -9/Materials Resources | -11 -10 -9 ----------- Run | Yrd Mat Mat Matter Collected 193 | 153 40 . Remotely . | . . . Salvage Created 40 | . 40 . Parts 2 | . 2 . Haulers Intercepted . | . . . Recyclers Shooed . | . . . Parts Field Recycled . | . . . Retrieved Matter . | . . . Parts Self-Destructed . | . . . Prevented . | . . . Parts Restored . | . . . Kills | -11 -10 -9 ------- Run | Yrd Mat Mat Combat Hostiles Destroyed 1 | . 1 . Guns 1 | . 1 . Classes Destroyed 1 | . 1 . Grunt 1 | . 1 . Best Kill Streak 1 | . 1 . Combat Bots Only 1 | . 1 . Max Kills in Single Turn 1 | . 1 . Gunslinging . | . . . Exploded . | . . . Melee . | . . . Uniques/NPCs Destroyed . | . . . Combat | -11 -10 -9 -------- Run | Yrd Mat Mat Hostile Shots Fired 132 | . 18 114 Missed 43 | . 6 37 Hits 89 | . 12 77 Projectile 89 | . 12 77 Critical Strikes 5 | . 1 4 Damage Taken 1262 | . 246 1016 Core 480 | . 71 409 Absorbed by Shields . | . . . Core Remaining (%) 85 | 100 71 . Volleys Fired 12 | 1 8 3 Largest 2 | 1 2 1 Hottest 90 | 40 90 40 Shots Fired 17 | 1 13 3 Gun 17 | 1 13 3 Cannon . | . . . Launcher . | . . . Special . | . . . Kinetic . | . . . Thermal 5 | . 5 . Explosive . | . . . Electromagnetic 12 | 1 8 3 Robot Hit Streak 2 | 1 2 . Robot Miss Streak 3 | . 1 3 Penetration Max . | . . . Secondary Targets . | . . . Shots Hit Robots 9 | 1 8 . Core Hits 3 | . 3 . Critical Kills . | . . . Critical Parts Destroyed . | . . . Critical Strikes . | . . . Melee Attacks . | . . . Impact . | . . . Slashing . | . . . Piercing . | . . . Sneak Attacks . | . . . Combat Hostiles . | . . . Follow-up Attacks . | . . . Damage Inflicted 128 | 13 110 5 Guns 115 | 13 102 . Cannons . | . . . Explosions . | . . . Melee . | . . . Ramming 13 | . 8 5 Kinetic . | . . . Thermal 24 | . 24 . Explosive . | . . . Electromagnetic 91 | 13 78 . Impact . | . . . Slashing . | . . . Piercing . | . . . Highest Corruption . | . . . Average Corruption . | . . . Corruption Purged . | . . . Corruption Blocked . | . . . Overload Shots . | . . . Overflow Damage . | . . . Projectiles . | . . . Explosions . | . . . Melee . | . . . Knockbacks . | . . . Impact . | . . . Kinetic . | . . . Secondary . | . . . Self-Inflicted Damage 2 | . . 2 Shots . | . . . Rammed 3 | . . 3 Targets Rammed 11 | . 8 3 Kicked 8 | . 8 . Crushed . | . . . Highest Temperature 231 | . 231 5 Average Temperature 88 | . 95 4 Received Heat Transfer 651 | . 120 531 Effects 2 | . 2 . Interference 2 | . 2 . Siege Activations . | . . . Martial Activations . | . . . Shielding Activations . | . . . Robots Disrupted . | . . . Combat Hostiles . | . . . Robots Corrupted . | . . . Combat Hostiles . | . . . Parts Fried . | . . . Impact Corruptions . | . . . Robots Melted . | . . . Combat Hostiles . | . . . Parts Melted . | . . . Heat Transferred 74 | . 74 . Parts Sabotaged . | . . . Parts Stolen . | . . . Parts Stripped . | . . . Power Chain Reactions . | . . . Alert | -11 -10 -9 ------- Run | Yrd Mat Mat Maximum Alert Level . | . . . Low Security (%) 100 | 100 100 100 Level 1 . | . . . Level 2 . | . . . Level 3 . | . . . Level 4 . | . . . Level 5 . | . . . High Security . | . . . Max Security . | . . . Peak Influence 45 | . 20 45 Initial 8 | . . 8 Average 7 | . 2 11 Influence Increases 144 | . 30 114 Destroy 0b10 Robot/C 20 | . 20 . Destroy Leader 10 | . 10 . Successful Hack 9 | . . 9 Disable Machine 15 | . . 15 Lose Combat Pursuer 90 | . . 90 Influence Decreases 114 | . 10 104 Entered New Map 12 | . . 12 Time Decay 62 | . 10 52 Lost Part 40 | . . 40 Squads Dispatched 3 | . . 3 Investigation . | . . . Extermination . | . . . Reinforcement 3 | . . 3 Assault . | . . . Garrison . | . . . Intercept . | . . . Searches Triggered . | . . . Construction Impeded . | . . . Haulers Reinforced . | . . . Active Scanning Responses . | . . . Cargo Convoy Interrupts . | . . . Stealth | -11 -10 -9 --------- Run | Yrd Mat Mat Distress Signals 3 | . . 3 Communications Jammed . | . . . Distress Signals . | . . . Times Spotted 21 | . 2 19 Peak Tracking Total 7 | . 2 7 Tactical Retreats 3 | . . 3 Traps | -11 -10 -9 ------- Run | Yrd Mat Mat Traps Triggered 2 | . 2 . Indirectly . | . . . Trap Hack Attempts . | . . . Triggered . | . . . Disarmed . | . . . Reprogrammed . | . . . Reused . | . . . Traps Extracted . | . . . Installed . | . . . Triggered . | . . . Machines | -11 -10 -9 ---------- Run | Yrd Mat Mat Machines Disabled 1 | . . 1 Max in Single Turn 1 | . . 1 Machines Repaired . | . . . Machines Dismantled . | . . . Machines Sabotaged . | . . . Overloaded Fab Kills . | . . . Hacking | -11 -10 -9 --------- Run | Yrd Mat Mat Machines Accessed 2 | . 1 1 Terminals 2 | . 1 1 Fabricators . | . . . Repair Stations . | . . . Recycling Units . | . . . Scanalyzers . | . . . Garrison Access . | . . . Total Hacks 6 | . 3 3 Successful 3 | . 1 2 Failed 3 | . 2 1 Catastrophic . | . . . Database Lockouts . | . . . Manual . | . . . Terminals 6 | . 3 3 Fabricators . | . . . Repair Stations . | . . . Recycling Units . | . . . Scanalyzers . | . . . Garrison Access . | . . . Terminal Hacks 3 | . 1 2 Locate Traps 1 | . . 1 Transport Status 1 | . . 1 Zone Layout 1 | . 1 . Fabricator Hacks . | . . . Repair Station Hacks . | . . . Recycling Unit Hacks . | . . . Scanalyzer . | . . . Garrison Access Hacks . | . . . Unauthorized Hacks . | . . . Terminals . | . . . Fabricators . | . . . Repair Stations . | . . . Recycling Units . | . . . Scanalyzers . | . . . Garrison Access . | . . . Data Cores Recovered . | . . . Used . | . . . Hacking Detections 2 | . 1 1 Full Trace Events . | . . . Feedback Events . | . . . Feedback Blocked . | . . . Robot Schematics Acquired . | . . . Robots Built . | . . . Authchips . | . . . Time . | . . . Total Robot Build Rating . | . . . Part Schematics Acquired . | . . . Parts Built . | . . . Authchips . | . . . Time . | . . . Total Part Build Rating . | . . . Part Studies Acquired . | . . . Parts Repaired . | . . . Time . | . . . Parts Recycled . | . . . Recycled Matter . | . . . Retrieved Matter . | . . . Retrieved Components . | . . . Parts Scanalyzed . | . . . Part Schematics Acquired . | . . . Parts Damaged . | . . . Bothacking | -11 -10 -9 ------------ Run | Yrd Mat Mat Used RIF Installer . | . . . Robots Hacked . | . . . Non-combat . | . . . Combat . | . . . Robot Hacks Applied . | . . . Relay Couplers Released . | . . . Fabnet Peak Effective % . | . . . Robots Rewired . | . . . Allies Hacked . | . . . Hacks Repelled . | . . . Allies | -11 -10 -9 -------- Run | Yrd Mat Mat Total Allies . | . . . Largest Group . | . . . Highest-Rated Group . | . . . Highest-Rated Ally . | . . . Total Orders . | . . . Ally Attacks . | . . . Total Damage . | . . . Kills . | . . . Allies Corrupted . | . . . Allies Melted . | . . . Intel | -11 -10 -9 ------- Run | Yrd Mat Mat Active Infowar (turns) . | . . . Robot Analysis Total . | . . . Derelict Logs Recovered . | . . . Drone Launches . | . . . Drone Recoveries . | . . . Exploration | -11 -10 -9 ------------- Run | Yrd Mat Mat Turns Passed 405 | 56 137 212 Spaces Moved 268 | 38 77 153 Core 27 | 6 . 21 Treads . | . . . Legs 204 | 32 77 95 Wheels 37 | . . 37 Hover . | . . . Flight . | . . . Fastest Speed 50 | 50 120 100 Average Speed 122 | 115 120 125 Slowest Speed 250 | 150 120 250 Overloaded Moves . | . . . Propulsion Burnouts . | . . . Robots Hopped . | . . . Potential Cave-ins . | . . . Cave-ins Triggered . | . . . Exploration Rate (%) 19 | 5 23 30 Regions Visited 2 Branch Regions . Pre-discovered Areas . | . . . Known Exits Taken . | . . . Unknown Exits Taken 2 | 1 1 . Scrap Searched . | . . . Spaces Dug . | . . . Terrain Destroyed . | . . . Melee . | . . . Projectile . | . . . AOE . | . . . Terrain Rammed . | . . . Walls Destroyed . | . . . Machines Disabled . | . . . Actions | -11 -10 -9 --------- Run | Yrd Mat Mat Total 321 | 47 106 168 Wait 12 | . 12 . Move 266 | 37 76 153 Hop . | . . . Pick Up 6 | 4 . 2 Fast Attach 8 | 4 1 3 Attach 5 | 1 1 3 Detach 1 | . . 1 Swap . | . . . Drop . | . . . Fire 12 | 1 8 3 Melee . | . . . Ram 3 | . . 3 Kick 8 | . 8 . Crush . | . . . Escape Stasis . | . . . Rewire . | . . . Trap . | . . . Miscellaneous . | . . . Route ------- -11/Scrapyard -10/Materials -9/Materials History --------- Turn | Location | Event 14 | -11/Scrapyard | Discovered new exit (range 15) 57 | -11/Scrapyard | Entered Materials 132 | -10/Materials | Discovered new exit (range 14) 194 | -10/Materials | Entered another Materials area 194 | -9/Materials | Evolved 2 slots: Propulsion x1, Utility x1 324 | -9/Materials | Build established: Mutant 350 | -9/Materials | Lost 4 parts (2p2n) 361 | -9/Materials | Core integrity fell below 50% 393 | -9/Materials | Core integrity fell below 20% 406 | -9/Materials | Destroyed by G-34 Mercenary with Small Laser Last Messages --------------- 00333_ Slammed into O-16 Technician. 00340_ W-16 Scout sends out distress signal. 00345_ Acquired Ion Engine. When attempting to attach a part directly from the ground, if there is no auto-replacement effect you can quickly repeat the command a second time to attempt a manual swap. 00354_ Discarded Imp. Targeting Computer. 00355_ Acquired Lgt. Armor Plating. 00357_ Acquired Lrg. Matter Pod. 00362_ W-16 Scout sends out distress signal. 00365_ C-30 ARC bursts open, deploying its payload. 00365_ G-47 Trooper unfolds itself. 00365_ G-34 Mercenary unfolds itself. 00370_ Com. Wheel destroyed. 00373_ Slammed into U-05 Engineer. 00378_ Lgt. Armor Plating destroyed. 00392_ Ion Engine destroyed. 00399_ Critical hit (Burn: +37). Map ----- +----------------------------------------------------+ | ??????????????????????????????????????????????? | | ??????????????????????????????????????????????? | | ??????????????????????????????????????????????? | | ??????????????????????????????????????????????? | | ??????????????????????????????????????????????? | | ??????????????????????????????????????????????? | | ??????????????????????????????????????????????? | | ??????????????????????????????????????????????? | | ??????????????????????????????????????????????? | | ??????????????????????????????????????????????? | | ??????????????????????????????????????????????? | | ??????????????????????????????????????????????? | | ??????????????????????????????????????????????? | | ??????????????????????????????????????????????? | | ??????????????????????????????????????????????? | | ????????????????????a?????????????????????????? | | ????????????????????/####?????????????????????? | | ??????????????????? ??###???????????????? | | ?????????????????? g ? ???????????????? | | ?????????????????# [ # #????????????? | | ?????????????????# g a # """ ?????????????? | | ?????????????????# """ """ # """ #????????????? | | ?????????????????# """g""" # """ ?????????????? | | ?????????????????? """ """ # ??????????????? | | ???????????????????? ??# ???????????????? | | ????????????????????##@#####/#########+#####??? | | ????????????????????# ?? | | ????????????????????# g ?? | | ????????????????????# g " ?? | | ???????????????########+##### %######+##?????? | | ???????????????# # #?????????????? | | ???????????????# # #?????????????? | | ???????????????# """"" # #?????????????? | | ???????????????# """"" # #???? ????????? | | ???????????????# """"" # #??? ????????? | | ???????????????############## #??? ???????? | | ????????????????????????????# #???#+######??? | | ????????????????????????????# #???# ##"""#??? | | ????????????????????????????# ##### ##"T"#### | | ?????????????????????????"??#^ | | ?????????????????????????""?# ^ | | ??????????????????????????" # !! ^ | | ??????????????????????????? + ! """ # | | ??###########???????????????# ! """ # | | ??# #######?????????# ^ "" T | | ??# # ########### # | | ??# # # | | ??# + " # | | ??# # "T" # | | ??# # ###+######+######/####### # | +----------------------------------------------------+ Best States ------------- Heat Dissipation 28 Energy Generation 10 Energy Capacity 400 Matter Stores 259 Matter Capacity 450 Sight Range 16 Terrain Scan Density 10 Armor Coverage 150 Evasion (%) 55 Targeting Accuracy 6 Item Schematics ----------------- None Robot Schematics ------------------ None Fabricated ------------ Nothing Repaired ---------- Nothing Studied --------- None Alien Tech Used ----------------- None Achievements -------------- DATA ERROR: Steam Global Achievement% For Emergencies Only Organ Harvest Challenges ------------ None Game ------ Seed RapidPowerCloak Manual? 0 Play Time 00:11:27 Cumulative 36.5 hours Start 2025.12.24 @ 13:46:52 End 2025.12.24 @ 13:56:21 Sessions 1 Manual Loads 0 Difficulty Rogue Special Mode None Game No. 47 Rogue 47 Adventurer 0 Explorer 0 Win Type - Total 0 Types 0/0/0/0/0/0/0/0/0/0 Lore% 9 Gallery% 25 Achievement% 14 Wizard Run 0 Options --------- Layout 1 ASCII 0 Keyboard 1 Movement Vi Keybinds 0 Fullscreen 2 Font 24/Smallcaps Map View 50x35 Zoom Use 0% Tactical HUD 1 Map Filters NONE Filters NONE Steam 1 RUN: b01cf856-900b-4cd1-b367-3c600edf85f5